bitfinex/quotes_ETHUSD_20241215
["timestamp","ask_amount","ask_price","bid_price","bid_amount"]
[1734231587145,1.25373767,3882.8,3882.3,1.88150133]
[1734231587306,1.25373767,3882.8,3882.4,2.27850848]
[1734231587508,1.25373767,3882.8,3882.5,2.23453605]
[1734231587705,3.65123779,3882.9,3882.6,0.04396894]
[1734231587909,1.25394172,3882.8,3882.3,1.88150133]
[1734231588104,1.25394172,3882.8,3882.4,2.27850635]
[1734231588320,1.25394172,3882.8,3882.5,2.23453308]
[1734231588521,1.25394172,3882.8,3882.6,0.04396894]
[1734231588716,1.25394172,3882.8,3882.3,1.88150133]
[1734231588927,1.25394172,3882.8,3882.4,2.27850628]
[1734231589140,1.25394172,3882.8,3882.5,2.23453301]
[1734231589349,1.25394172,3882.8,3882.6,0.04397146]
[1734231589508,1.25394172,3882.8,3882.3,1.88150133]
[1734231589841,1.25394172,3882.8,3882.4,2.27850559]
[1734231590054,1.25394172,3882.8,3882.5,2.23453232]
[1734231590367,1.25394172,3882.8,3882.6,0.04396894]
[1734231590713,1.25394172,3882.8,3882.3,1.88150133]
[1734231590913,1.25394172,3882.8,3882.4,2.27851633]
[1734231591113,1.25394172,3882.8,3882.5,2.2345397]
[1734231591315,1.25394172,3882.8,3882.6,0.04397062]
[1734231591515,1.25394172,3882.8,3882.3,1.88150133]
[1734231591826,1.25394172,3882.8,3882.4,2.27851628]
[1734231592163,3.65123779,3882.9,3882.4,0.04397495]
[1734231592312,1.25393275,3882.8,3882.5,2.23454105]
[1734231592513,2.57552,3882.7,3882.6,0.0439723]
[1734231592790,2.57552,3882.7,3882.1,1.07560133]
[1734231592791,4.90526054,3882.7,3882.1,1.07560133]
[1734231593063,4.90526054,3882.7,3882.0,1.26442554]
[1734231593064,2.32974054,3882.6,3882.2,2.23467421]
[1734231593260,2.32974054,3882.6,3882.3,0.89386968]
[1734231593466,2.32974054,3882.6,3882.0,2.34002687]
[1734231593629,3.65132779,3882.7,3882.1,2.23448165]
[1734231593833,2.32962192,3882.6,3882.2,2.23448165]
[1734231594015,2.32962192,3882.6,3882.3,0.89379266]
[1734231594215,2.57552,3882.7,3882.0,3.05667301]
[1734231594216,3.65132779,3882.7,3882.0,3.05667301]
[1734231594416,1.24898284,3882.6,3882.1,2.23436832]
[1734231594635,1.24898284,3882.6,3882.2,2.23436832]
[1734231594849,1.24898284,3882.6,3882.3,0.89374733]
[1734231595045,1.24898284,3882.6,3882.1,0.79662732]
[1734231595262,1.24898284,3882.6,3882.2,2.23436777]
[1734231595463,2.32479063,3882.6,3882.1,0.79662732]
[1734231595665,2.32479063,3882.6,3882.2,0.89371268]
[1734231595825,2.32479063,3882.6,3882.1,0.79662732]
[1734231596028,2.32479063,3882.6,3882.2,0.89371269]
[1734231596232,2.32479063,3882.6,3882.1,0.79662732]
[1734231596549,1.07580779,3882.6,3882.2,0.89366349]
[1734231596857,1.07580779,3882.6,3882.1,0.79662732]
[1734231597055,1.07580779,3882.6,3882.2,0.89366364]
[1734231597222,1.07580779,3882.6,3882.1,0.79662732]
[1734231597423,1.07580779,3882.6,3882.2,0.89361102]
[1734231597647,3.65139779,3882.6,3882.0,1.26442554]
[1734231597846,3.65139779,3882.6,3882.1,2.2340378]
[1734231598022,3.65139779,3882.6,3882.2,0.89361512]
[1734231598233,1.07580779,3882.6,3882.2,0.42954718]
[1734231598428,3.65126779,3882.8,3882.3,0.89353137]
[1734231598629,3.65126779,3882.8,3882.3,0.8059]
[1734231599518,1.07580779,3882.8,3882.4,0.89350064]
[1734231599828,1.07580779,3882.8,3882.3,0.8059]
[1734231600182,1.07580779,3882.8,3882.4,0.89350037]
[1734231600319,1.07580779,3882.8,3882.3,1.18904039]
[1734231600732,1.07580779,3882.9,3882.4,0.89349931]
[1734231600963,1.07580779,3882.9,3882.3,2.25087022]
[1734231601150,1.07580779,3882.9,3882.4,0.89348849]
[1734231601352,1.07580779,3882.9,3882.5,0.46495072]
[1734231601575,1.07580779,3883.0,3882.5,0.46495072]
[1734231602822,1.07580779,3883.0,3882.5,1.52678055]
[1734231603024,1.07580779,3883.0,3882.6,0.8059]
[1734231603219,1.07580779,3883.0,3882.7,1.06182983]
[1734231603424,1.07580779,3883.1,3883.0,0.8059]
[1734231603734,3.23365409,3884.0,3883.1,0.8059]
[1734231603735,1.07580779,3883.7,3883.1,0.8059]
[1734231603933,1.07580779,3883.8,3883.4,1.06182983]
[1734231604435,2.12003065,3883.9,3883.4,1.06182983]
[1734231604436,1.58285729,3883.9,3883.4,1.06182983]
[1734231604624,1.24751125,3883.8,3883.4,1.06182983]
[1734231604824,1.24751125,3883.8,3883.2,1.06182983]
[1734231605125,1.24751125,3883.8,3883.1,0.8059]
[1734231605126,2.32331904,3883.8,3883.1,0.8059]
[1734231605346,2.32331904,3883.8,3882.8,3.14647469]
[1734231605347,1.99603972,3883.7,3882.8,3.14647469]
[1734231605539,0.7573,3883.7,3882.9,2.23175675]
[1734231605721,0.7573,3883.7,3883.0,2.23173799]
[1734231605920,3.07181452,3883.7,3882.8,3.14647469]
[1734231606258,1.83310779,3883.7,3882.9,2.70774053]
[1734231606425,0.7573,3883.7,3883.0,0.89270114]
[1734231606622,2.57501,3883.5,3883.0,0.89270114]
[1734231606825,1.83310779,3883.7,3883.0,0.89270114]
[1734231607121,1.58285729,3883.9,3883.1,1.95436212]
[1734231607323,0.5070495,3883.9,3883.2,0.35059511]
[1734231608035,0.5070495,3883.9,3882.9,2.61341883]
[1734231608234,0.5070495,3883.9,3883.0,2.23087806]
[1734231608440,0.5070495,3883.9,3882.9,1.5378175]
[1734231608755,3.0817795,3883.9,3883.0,2.23052173]
[1734231610342,3.0817795,3883.9,3882.9,1.5378175]
[1734231610528,3.0817795,3883.9,3883.0,2.59202954]
[1734231610733,3.0817795,3883.9,3883.0,0.36224624]
[1734231611562,0.5070495,3883.9,3883.0,0.36224624]
[1734231611768,0.5070495,3883.9,3883.1,0.7732]
[1734231612064,3.0817995,3883.9,3883.1,0.7732]
[1734231613425,3.0817995,3883.9,3883.1,0.99292761]
[1734231614997,3.0817995,3883.9,3883.1,2.05475744]
[1734231615848,0.5070495,3883.9,3883.1,2.05475744]
[1734231617321,3.0817895,3883.9,3883.1,0.99292761]
[1734231617587,3.0817895,3883.9,3883.2,0.04164286]
[1734231618188,2.57481,3883.8,3883.2,0.04164286]
[1734231619811,0.7573,3883.7,3883.2,0.04164286]
[1734231620218,0.7573,3883.7,3882.9,1.83502983]
[1734231620374,0.7573,3883.7,3883.3,0.04158251]
[1734231620576,0.7573,3883.7,3883.0,0.18350298]
[1734231620818,0.7573,3883.7,3883.4,0.04158034]
[1734231621090,0.7573,3883.7,3883.0,0.18350298]
[1734231621258,0.7573,3883.7,3883.5,0.04157818]
[1734231621461,0.7573,3883.7,3883.0,0.18350298]
[1734231621764,0.5070495,3883.9,3883.1,1.30526994]
[1734231623054,0.5070495,3883.9,3883.2,0.7732]
[1734231623361,0.5070495,3883.9,3883.3,0.04159414]
[1734231624306,0.5070495,3883.9,3883.3,1.10342397]
[1734231624706,0.764,3884.3,3883.8,0.7989]
[1734231624932,3.3279,3884.6,3883.9,0.18607298]
[1734231625161,3.3279,3884.6,3883.8,0.8246454]
[1734231625473,3.3279,3884.6,3883.9,1.06182983]
[1734231625673,0.51859784,3884.6,3884.0,0.025745]
[1734231625876,0.51859784,3884.6,3883.8,0.7989]
[1734231625877,0.7536,3884.9,3884.3,1.06182983]
[1734231626228,0.7536,3884.9,3884.1,1.06182983]
[1734231626573,0.7536,3884.9,3884.2,0.0413994]
[1734231627880,3.32767,3884.9,3884.1,1.06182983]
[1734231628178,0.51082299,3884.8,3884.1,1.06182983]
[1734231628478,0.51082299,3884.8,3884.1,1.24790281]
[1734231628740,1.06182983,3885.4,3884.5,1.06182983]
[1734231628741,0.7536,3885.2,3884.5,1.06182983]
[1734231629225,0.7536,3885.2,3884.6,0.04116066]
[1734231630157,1.27866825,3885.2,3884.6,0.04116066]
[1734231631015,2.57355,3885.7,3884.6,0.06690052]
[1734231631208,3.32701,3885.9,3885.1,1.06182983]
[1734231631415,0.7536,3885.9,3884.9,1.06182983]
[1734231631714,2.57348,3885.8,3884.9,1.06182983]
[1734231631859,2.57348,3885.8,3885.0,0.0401342]
[1734231632066,2.57348,3885.8,3885.1,0.1922364]
[1734231632519,2.57348,3885.8,3885.2,0.04012988]
[1734231632827,0.7536,3885.9,3885.3,0.8204]
[1734231632828,0.51281786,3885.5,3885.3,0.8204]
[1734231633140,0.51281786,3885.5,3885.4,0.04012556]
[1734231633278,1.26641786,3885.5,3885.4,0.04012556]
[1734231633718,1.26641786,3885.5,3884.6,0.8204]
[1734231634086,3.84008786,3885.5,3885.4,0.03994532]
[1734231634266,3.84008786,3885.5,3884.8,1.06182983]
[1734231634267,1.26641786,3885.5,3884.8,1.06182983]
[1734231634462,1.26641786,3885.5,3884.9,0.03995612]
[1734231634714,1.26641786,3885.5,3885.0,1.06182983]
[1734231634715,0.51281786,3885.5,3885.0,1.06182983]
[1734231634915,0.51281786,3885.5,3885.1,0.8204]
[1734231635215,0.51281786,3885.5,3885.2,0.22823076]
[1734231636848,0.51281786,3885.5,3885.2,0.04000778]
[1734231637195,0.51281786,3885.5,3884.8,0.8204]
[1734231637408,0.51281786,3885.5,3885.3,0.03995911]
[1734231637603,0.51281786,3885.5,3884.8,0.8204]
[1734231637865,0.51281786,3885.5,3885.4,0.03995695]
[1734231638153,0.51281786,3885.5,3884.8,0.8204]
[1734231638369,0.51281786,3885.5,3885.4,0.03995695]
[1734231638569,0.51281786,3885.5,3884.9,0.18822298]
[1734231638870,0.51281786,3885.5,3885.4,0.03994532]
[1734231639011,0.51281786,3885.5,3884.9,0.18822298]
[1734231639207,0.51281786,3885.5,3885.4,0.03994532]
[1734231639413,0.51281786,3885.5,3884.9,1.25005281]
[1734231639758,0.51281786,3885.5,3885.0,0.20704528]
[1734231639965,0.51281786,3885.5,3885.0,0.24699924]
[1734231641471,0.7536,3885.9,3885.4,0.8204]
[1734231641769,0.7536,3885.9,3885.5,0.03992957]
[1734231642965,1.25771517,3885.9,3885.5,0.03992957]
[1734231643173,1.25771517,3885.9,3885.4,0.8204]
[1734231643748,0.50411517,3885.9,3885.4,0.8204]
[1734231644383,2.57362,3885.6,3885.0,1.00784528]
[1734231644586,2.57362,3885.6,3885.5,0.03832412]
[1734231644769,2.57362,3885.6,3885.0,0.20704528]
[1734231644989,2.57362,3885.6,3885.5,0.0381846]
[1734231645155,2.57362,3885.6,3885.0,0.20704528]
[1734231645354,2.57362,3885.6,3885.5,0.0381846]
[1734231645652,2.57356,3885.7,3885.0,0.20704528]
[1734231646087,1.06182983,3885.7,3885.1,0.03819241]
[1734231646287,0.7628,3885.6,3885.1,0.03819241]
[1734231646493,0.7628,3885.3,3884.4,0.7593]
[1734231646692,0.7628,3885.3,3884.5,0.18211298]
[1734231646891,2.57396,3885.1,3884.5,0.03729179]
[1734231647188,2.57396,3885.1,3884.4,0.7593]
[1734231649184,2.49673495,3885.1,3884.4,0.7593]
[1734231649990,2.49673495,3885.1,3884.5,0.03729179]
[1734231652717,0.7628,3884.8,3884.5,0.03729179]
[1734231652863,2.75668298,3884.7,3884.5,0.03729179]
[1734231653061,2.57437,3884.5,3883.8,0.7593]
[1734231653799,2.57437,3884.5,3883.9,0.03606074]
[1734231655298,3.33695,3884.8,3883.9,0.03606074]
[1734231657005,0.7628,3884.8,3883.9,0.03606074]
[1734231657433,0.5227079,3884.6,3883.8,0.7593]
[1734231657625,0.5227079,3884.6,3884.0,0.03703701]
[1734231657803,0.5227079,3884.6,3883.8,0.94141298]
[1734231657998,0.5227079,3884.6,3884.1,0.03703568]
[1734231658213,0.5227079,3884.6,3883.8,0.94141298]
[1734231658532,0.5227079,3884.6,3884.2,0.03703352]
[1734231658689,0.5227079,3884.6,3883.8,0.94141298]
[1734231658891,0.5227079,3884.6,3884.3,0.03695576]
[1734231659089,0.5227079,3884.6,3883.8,0.7593]
[1734231659297,0.5227079,3884.6,3884.4,0.03695941]
[1734231659489,0.5227079,3884.6,3883.8,0.7593]
[1734231659926,0.5227079,3884.6,3883.9,0.03697022]
[1734231660632,3.0969879,3884.6,3883.9,0.03697022]
[1734231662905,0.824,3884.5,3883.9,0.03697022]
[1734231663099,2.57461,3884.1,3883.9,0.03697022]
[1734231663304,0.824,3884.0,3883.1,0.7902]
[1734231663507,3.39867,3884.0,3883.1,0.7902]
[1734231663709,2.57475,3883.9,3883.2,0.03701479]
[1734231664686,3.09138289,3883.9,3883.2,0.03701479]
[1734231665244,0.51663289,3883.9,3883.2,0.03701479]
[1734231665430,0.38597879,3884.6,3883.3,1.06182983]
[1734231665431,3.40099,3884.3,3883.3,1.06182983]
[1734231665588,3.40099,3884.3,3883.4,0.7616]
[1734231665783,3.40099,3884.3,3883.4,0.79861994]
[1734231668718,0.50782928,3884.0,3883.4,0.79861994]
[1734231670530,0.50782928,3884.0,3883.5,1.06182983]
[1734231670717,0.50782928,3884.0,3883.4,0.98466492]
[1734231670919,0.50782928,3884.0,3883.6,0.03716685]
[1734231671133,0.50782928,3884.0,3883.5,0.03716901]
[1734231671329,0.50782928,3884.0,3883.7,0.03716469]
[1734231671534,0.50782928,3884.0,3883.6,0.03716685]
[1734231671832,0.50782928,3884.0,3883.4,0.94764498]
[1734231672035,0.50782928,3884.0,3883.5,0.23811649]
[1734231672896,0.50782928,3884.0,3883.5,0.03716901]
[1734231673202,0.50782928,3884.0,3883.4,0.7616]
[1734231674305,0.50782928,3884.0,3883.5,1.06182983]
[1734231674809,0.50782928,3884.0,3883.4,0.7616]
[1734231674810,0.8265,3884.6,3883.7,1.06182983]
[1734231675013,2.57423,3884.7,3883.8,0.79876253]
[1734231675332,2.57423,3884.7,3883.9,0.18605924]
[1734231675702,2.57423,3884.7,3884.0,0.03732106]
[1734231677238,0.52257901,3884.5,3884.0,0.03732106]
[1734231678538,0.52257901,3884.5,3884.1,0.7616]
[1734231678899,2.57423,3884.7,3884.2,0.03731673]
[1734231679301,2.57423,3884.7,3884.1,0.7616]
[1734231679705,2.57423,3884.7,3884.2,0.03731673]
[1734231680119,0.8265,3884.9,3884.1,0.7616]
[1734231680302,3.40057,3884.9,3884.1,0.7616]
[1734231680499,0.50342636,3884.6,3884.2,0.03707827]
[1734231681542,3.40037,3885.2,3884.2,0.03707827]
[1734231681754,3.40037,3885.2,3884.3,0.7616]
[1734231681952,0.51286406,3884.8,3884.3,0.7616]
[1734231682202,0.51286406,3884.8,3884.3,0.94394298]
[1734231682369,0.51286406,3884.8,3884.4,0.03678316]
[1734231684089,0.51286406,3884.8,3884.3,0.7616]
[1734231684286,0.51286406,3884.8,3884.4,0.03678316]
[1734231684584,0.51286406,3884.8,3884.3,0.7616]
[1734231684990,0.51286406,3884.8,3884.4,0.03678316]
[1734231685573,0.51286406,3884.8,3884.3,0.7616]
[1734231685992,1.90230779,3885.2,3884.4,0.03678316]
[1734231685993,0.8265,3885.2,3884.4,0.03678316]
[1734231686300,0.51178305,3884.9,3884.4,0.03678316]
[1734231688266,0.51178305,3884.9,3884.5,0.7932]
[1734231688457,0.51178305,3884.9,3884.6,0.03677884]
[1734231688713,0.51178305,3884.9,3884.5,0.7932]
[1734231689218,0.51178305,3884.9,3884.6,0.03670906]
[1734231689572,0.51178305,3884.9,3884.5,0.7932]
[1734231689764,0.51178305,3884.9,3884.7,0.03671271]
[1734231689971,1.07580779,3885.4,3884.6,0.03671446]
[1734231690216,1.07580779,3885.5,3884.9,0.7932]
[1734231690414,1.07580779,3885.4,3884.9,0.7932]
[1734231690568,1.07580779,3885.5,3884.9,0.7932]
[1734231690763,2.31388573,3885.5,3884.9,0.7932]
[1734231690992,2.31388573,3885.5,3885.0,0.03642428]
[1734231691496,2.31388573,3885.4,3885.0,0.03642428]
[1734231691700,1.07580779,3885.5,3885.0,0.03642428]
[1734231691873,0.50676831,3885.2,3885.0,0.03642428]
[1734231692504,0.50676831,3885.2,3884.9,0.7932]
[1734231694204,2.57401,3885.0,3884.2,0.7932]
[1734231694415,2.57409,3884.9,3884.2,0.7932]
[1734231694626,2.57409,3884.9,3884.3,0.03624754]
[1734231694961,2.57409,3884.9,3884.2,0.7932]
[1734231695395,2.57433,3884.5,3884.3,0.03624754]
[1734231695923,3.35373,3884.5,3883.9,0.7932]
[1734231696398,3.35373,3884.5,3884.0,0.03625402]
[1734231696607,2.57445,3884.4,3884.0,0.03625402]
[1734231696762,2.57449,3884.3,3884.0,0.03625402]
[1734231696957,2.57449,3884.3,3883.6,0.7932]
[1734231697312,1.07580779,3884.8,3883.7,0.7932]
[1734231697600,1.07580779,3885.0,3884.4,0.7932]
[1734231697794,4.18689115,3885.2,3884.4,0.7932]
[1734231697795,3.64971779,3885.2,3884.4,0.7932]
[1734231697957,0.51387254,3884.9,3884.5,0.03669675]
[1734231698581,3.64971779,3885.2,3884.5,0.03669675]
[1734231698781,2.57391,3885.2,3884.5,0.03669675]
[1734231699081,0.51937287,3885.1,3884.5,0.03669675]
[1734231699484,2.57391,3885.2,3884.5,0.03669675]
[1734231700382,3.09199589,3885.2,3884.5,0.03669675]
[1734231702507,4.16780368,3885.2,3884.5,0.03669675]
[1734231702803,1.23827117,3885.1,3884.5,0.03669675]
[1734231704407,3.09199589,3885.2,3884.5,0.03669675]
[1734231705476,4.16780368,3885.2,3884.5,0.03669675]
[1734231706421,1.23819662,3885.1,3884.5,0.03669675]
[1734231706620,4.82382216,3885.2,3884.5,0.03669675]
[1734231707223,1.23820639,3885.1,3884.5,0.03669675]
[1734231707793,3.74801437,3885.2,3884.5,0.03669675]
[1734231710411,4.82382216,3885.2,3884.5,0.03669675]
[1734231711765,3.74801437,3885.2,3884.5,0.03669675]
[1734231712070,3.09199589,3885.2,3884.5,0.03669675]
[1734231712232,4.16780368,3885.2,3884.5,0.03669675]
[1734231713132,3.81291036,3885.1,3884.5,0.03669675]
[1734231713335,3.64976779,3885.1,3884.5,0.03669675]
[1734231713527,1.23903207,3885.0,3884.5,0.03669675]
[1734231713728,1.23903207,3885.0,3884.4,0.7932]
[1734231714739,3.64976779,3885.1,3884.4,0.7932]
[1734231714942,1.23916591,3885.0,3884.4,0.7932]
[1734231716473,2.3149737,3885.0,3884.4,0.7932]
[1734231717730,4.8889837,3885.0,3884.4,0.7932]
[1734231717935,1.23916591,3884.9,3884.4,0.7932]
[1734231719021,1.07580779,3884.9,3884.4,0.7932]
[1734231719362,2.5742,3884.7,3884.4,0.7932]
[1734231721266,3.63461528,3884.7,3884.4,0.7932]
[1734231724388,4.71042307,3884.7,3884.4,0.7932]
[1734231724587,0.51227804,3884.5,3884.4,0.7932]
[1734231724913,1.13855214,3884.5,3884.4,0.82967131]
[1734231726603,0.6262741,3884.5,3884.4,0.82967131]
[1734231726921,0.24087465,3884.5,3884.4,0.82967131]
[1734231728836,0.24086019,3884.5,3884.4,0.82967131]
[1734231729141,0.24086019,3884.5,3884.4,1.72263201]
[1734231729296,0.24086019,3884.5,3884.4,3.58443778]
[1734231730341,0.24086019,3884.5,3884.4,3.58435098]
[1734231731213,0.24086019,3884.5,3884.4,3.58437049]
[1734231731408,1.07580779,3885.0,3884.4,3.58437049]
[1734231731633,2.31596856,3885.0,3884.5,0.89292704]
[1734231731948,1.48102808,3884.9,3884.6,0.03646699]
[1734231732133,1.07580779,3885.0,3884.6,0.03646699]
[1734231732134,0.24086731,3884.8,3884.6,0.03646699]
[1734231732323,0.24086731,3884.7,3884.4,1.31558157]
[1734231732518,0.24086731,3884.6,3884.5,1.16851336]
[1734231733659,0.24086731,3884.6,3884.5,0.03646915]
[1734231733833,2.57403,3885.0,3884.5,0.03646915]
[1734231733834,1.07580779,3884.8,3884.5,0.03646915]
[1734231735262,2.31596805,3884.8,3884.5,0.03646915]
[1734231735461,2.31596805,3884.8,3884.4,0.7932]
[1734231738769,2.31596805,3884.8,3884.5,0.03630053]
[1734231738969,1.07580779,3884.8,3884.5,0.03630053]
[1734231739131,2.31643456,3884.8,3884.5,0.03630053]
[1734231739328,4.89061456,3884.8,3884.5,0.03630053]
[1734231739557,1.24062677,3884.7,3884.5,0.03630053]
[1734231740766,3.81484677,3884.7,3884.5,0.03630053]
[1734231740961,2.57422,3884.7,3884.5,0.03630053]
[1734231741576,2.57422,3884.7,3884.2,1.86680133]
[1734231741779,2.57422,3884.7,3884.6,0.03629837]
[1734231741982,3.81491759,3884.7,3884.2,1.86680133]
[1734231742198,2.57422,3884.7,3884.6,0.03629837]
[1734231742404,3.81489538,3884.7,3884.2,1.86680133]
[1734231742573,2.57422,3884.7,3884.6,0.03629837]
[1734231742767,3.81499703,3884.7,3884.2,1.86680133]
[1734231742999,2.57422,3884.7,3884.6,0.03629837]
[1734231743173,2.57422,3884.7,3884.2,1.86680133]
[1734231743174,3.81497481,3884.7,3884.2,1.86680133]
[1734231743368,3.65002779,3884.7,3884.6,0.03629837]
[1734231743604,4.89086883,3884.7,3884.2,1.86680133]
[1734231743905,2.31664883,3884.6,3884.3,0.89330614]
[1734231744109,2.31664883,3884.6,3884.2,0.7912]
[1734231744422,2.31664883,3884.6,3884.3,0.89331406]
[1734231744728,1.07580779,3884.6,3884.2,0.7912]
[1734231744929,2.31647156,3884.6,3884.3,0.89329117]
[1734231745072,2.31647156,3884.6,3884.2,0.7912]
[1734231745287,2.31647156,3884.6,3884.3,0.89329124]
[1734231745517,2.31647156,3884.6,3884.2,0.7912]
[1734231745695,2.31647156,3884.6,3884.3,0.8932896]
[1734231745893,2.31647156,3884.6,3884.2,0.7912]
[1734231746096,2.31647156,3884.6,3884.3,0.89328939]
[1734231746275,2.31647156,3884.6,3884.2,0.7912]
[1734231746476,3.65002779,3884.7,3884.3,2.23321858]
[1734231746681,1.24039149,3884.6,3884.4,0.89328217]
[1734231746873,1.24039149,3884.6,3884.2,1.13922033]
[1734231747073,1.24039149,3884.6,3884.3,2.23321257]
[1734231747274,1.24039149,3884.6,3884.2,1.13922033]
[1734231747572,1.07580779,3884.6,3884.3,0.89328742]
[1734231747785,2.31610261,3884.6,3884.2,1.13922033]
[1734231747998,2.31610261,3884.6,3884.3,0.89329219]
[1734231748185,2.31610261,3884.6,3884.2,1.13922033]
[1734231748391,2.31610261,3884.6,3884.3,0.89329241]
[1734231748592,4.89044261,3884.5,3884.0,1.90520133]
[1734231748787,3.65014779,3884.5,3884.1,2.23331217]
[1734231749004,3.65014779,3884.5,3884.2,0.89332487]
[1734231749184,3.65014779,3884.5,3884.1,1.3399873]
[1734231749185,1.24024537,3884.4,3884.1,1.3399873]
[1734231749385,3.65014779,3884.5,3884.2,0.8933362]
[1734231749617,3.65014779,3884.5,3884.1,1.3399873]
[1734231749820,3.65014779,3884.5,3884.2,0.89328008]
[1734231750138,3.65014779,3884.5,3884.1,1.3399873]
[1734231752016,1.07580779,3884.6,3884.3,0.8296]
[1734231752216,4.18715115,3884.8,3884.3,0.8296]
[1734231752217,1.07580779,3884.7,3884.3,0.8296]
[1734231752518,2.31590715,3884.7,3884.4,0.03652945]
[1734231756663,1.24010324,3884.6,3884.4,0.03652945]
[1734231757039,2.31591103,3884.7,3884.4,0.03652945]
[1734231757236,1.24013768,3884.6,3884.4,0.03652945]
[1734231759033,2.31591103,3884.7,3884.4,0.03652945]
[1734231759488,1.24019967,3884.6,3884.4,0.03652945]
[1734231759792,2.31600746,3884.6,3884.4,0.03652945]
[1734231761876,1.24014328,3884.5,3884.4,0.03652945]
[1734231762288,2.31600746,3884.6,3884.4,0.03652945]
[1734231762881,1.24017193,3884.5,3884.4,0.03652945]
[1734231763067,1.24017193,3884.5,3884.0,0.8296]
[1734231763269,2.31597972,3884.5,3884.1,2.23303242]
[1734231763587,1.07580779,3884.5,3884.1,0.03658245]
[1734231763754,2.31613964,3884.5,3884.1,0.03658245]
[1734231764486,5.71062746,3884.6,3884.1,0.03658245]
[1734231764674,1.24031799,3884.5,3884.1,0.03658245]
[1734231764874,5.71062746,3884.6,3884.1,0.03658245]
[1734231765190,1.24032824,3884.5,3884.1,0.03658245]
[1734231766869,2.57446,3884.3,3884.1,0.03658245]
[1734231767277,2.57458,3884.2,3883.9,1.07560133]
[1734231767478,2.57458,3884.2,3884.0,2.2328038]
[1734231767659,2.57458,3884.2,3884.1,0.89312152]
[1734231768500,2.57458,3884.2,3883.8,1.07560133]
[1734231768708,2.57458,3884.2,3883.9,2.23276165]
[1734231768918,2.57458,3884.2,3883.8,1.07560133]
[1734231768919,2.57458,3884.2,3884.0,2.23276165]
[1734231769054,2.57458,3884.2,3883.8,1.07560133]
[1734231769393,2.57329272,3884.2,3883.9,2.2327719]
[1734231769571,2.57329272,3884.2,3884.0,0.89310876]
[1734231769765,2.57329272,3884.2,3883.8,1.07560133]
[1734231769997,2.57329272,3884.2,3883.9,2.2326793]
[1734231770194,2.57329272,3884.2,3884.0,0.89307172]
[1734231770371,2.57329272,3884.2,3883.8,1.07560133]
[1734231770566,2.57329272,3884.2,3883.9,2.2325917]
[1734231770768,2.57329272,3884.2,3884.0,0.89303668]
[1734231770971,1.61298115,3884.6,3883.7,1.07560133]
[1734231770972,3.34694,3884.1,3883.7,1.07560133]
[1734231771167,3.34694,3884.1,3883.8,0.89306553]
[1734231771392,3.34694,3884.1,3883.6,0.7953]
[1734231771635,3.34694,3884.1,3883.7,0.89294327]
[1734231771802,3.34694,3884.1,3883.6,0.7953]
[1734231772092,0.7723,3884.1,3883.6,0.7953]
[1734231772299,2.57469,3884.0,3883.6,0.7953]
[1734231773464,2.57469,3884.0,3883.4,1.85571528]
[1734231773794,1.07580779,3884.2,3883.6,1.06041528]
[1734231774000,1.23917891,3884.2,3883.6,1.06041528]
[1734231774318,4.8895267,3884.2,3883.6,1.06041528]
[1734231774492,2.57454,3884.2,3883.6,1.06041528]
[1734231776588,2.57462,3884.1,3883.4,1.24977186]
[1734231776818,3.33405,3883.9,3883.5,0.89242822]
[1734231777687,3.33405,3883.9,3883.4,0.7953]
[1734231777950,3.33405,3883.9,3883.5,0.89237916]
[1734231778105,2.35155166,3884.3,3883.5,0.89237916]
[1734231778430,2.5747,3884.0,3883.5,0.89237916]
[1734231780992,2.5747,3884.0,3883.4,0.7953]
[1734231781200,2.5747,3884.0,3883.5,0.89229982]
[1734231781697,2.5747,3884.0,3883.4,0.7953]
[1734231781899,2.5747,3884.0,3883.5,0.92905369]
[1734231782119,2.5747,3884.0,3883.5,0.03680475]
[1734231782520,4.16676166,3884.3,3883.5,1.39403217]
[1734231782837,3.09095387,3884.3,3883.6,0.7989]
[1734231783042,3.09095387,3884.3,3883.6,1.6910746]
[1734231783336,3.09095387,3884.3,3883.7,0.03680043]
[1734231784341,3.09095387,3884.3,3883.7,0.25609322]
[1734231785223,0.51644387,3884.3,3883.7,0.25609322]
[1734231785427,0.51644387,3884.3,3884.0,0.814]
[1734231785802,0.51644387,3884.3,3884.1,0.03679095]
[1734231796688,1.07707287,3884.6,3884.1,0.03679095]
[1734231797026,0.5260963,3884.6,3884.1,0.03679095]
[1734231797226,0.5260963,3884.6,3884.2,0.19112062]
[1734231797679,0.5260963,3884.6,3884.3,0.03679419]
[1734231802859,1.07397417,3884.5,3884.0,0.814]
[1734231803063,1.23950681,3884.5,3884.0,0.814]
[1734231803399,0.7543,3884.4,3884.1,0.03652304]
[1734231803591,3.81398124,3884.3,3884.1,0.03652304]
[1734231803792,2.57449,3884.3,3883.6,0.814]
[1734231803975,0.7543,3884.4,3883.6,0.814]
[1734231804311,2.57453,3884.2,3883.7,0.03653169]
[1734231806212,2.57473,3883.9,3883.7,0.03653169]
[1734231806799,2.57486,3883.7,3883.3,0.8276]
[1734231808415,2.57496,3883.6,3883.3,0.8276]
[1734231811612,2.57496,3883.6,3883.0,2.96697156]
[1734231811816,2.57496,3883.6,3883.1,2.2309133]
[1734231812013,2.57496,3883.6,3883.1,0.03698083]
[1734231813182,0.52288961,3883.7,3883.1,0.03698083]
[1734231813383,2.57513,3883.3,3883.1,0.03698083]
[1734231813586,2.57513,3883.3,3882.7,1.88801528]
[1734231813890,2.57513,3883.3,3883.2,0.03785696]
[1734231814219,2.57513,3883.3,3883.2,0.03791514]
[1734231814387,2.57513,3883.3,3882.7,1.88801528]
[1734231814581,2.57513,3883.3,3883.2,0.03791514]
[1734231814898,2.57513,3883.3,3882.7,2.18471244]
[1734231815094,2.57513,3883.3,3883.2,0.03791514]
[1734231815294,2.57513,3883.3,3882.7,2.18471244]
[1734231815595,2.57522,3883.2,3882.7,2.18471244]
[1734231815924,0.7837,3883.4,3882.8,0.03792379]
[1734231816127,2.57535,3883.0,3882.8,0.03792379]
[1734231816415,2.57542,3882.9,3882.3,1.82991528]
[1734231816625,2.57549,3882.8,3882.3,1.82991528]
[1734231816783,2.57549,3882.8,3882.4,0.03801389]
[1734231819235,2.57553,3882.7,3882.4,0.03801389]
[1734231820409,1.31326688,3882.9,3882.4,0.03801389]
[1734231820622,2.5756,3882.6,3882.4,0.03801389]
[1734231820826,2.5756,3882.6,3882.0,1.22802554]
[1734231821134,1.31326688,3882.9,3882.0,1.22802554]
[1734231821135,2.57582,3882.3,3882.0,0.45852554]
[1734231821435,2.57587,3882.2,3882.0,0.45852554]
[1734231824005,1.87071528,3882.1,3882.0,0.45852554]
[1734231824604,2.42071528,3882.1,3882.0,5.54e-06]